bitfinex/quotes_BTCUSD_20240729
["timestamp","ask_amount","ask_price","bid_price","bid_amount"]
[1722217304239,0.15628484,68931.0,68930.0,0.27302256]
[1722217304425,0.15428484,68931.0,68930.0,0.50514156]
[1722217304745,0.28386604,68931.0,68930.0,0.50514156]
[1722217304945,0.20260274,68931.0,68930.0,0.50514156]
[1722217305447,0.22538531,68931.0,68930.0,0.50514156]
[1722217305705,0.22538531,68931.0,68930.0,0.27302256]
[1722217305706,0.22738531,68931.0,68930.0,0.27302256]
[1722217305909,0.20460274,68931.0,68930.0,0.27302256]
[1722217306658,0.15604159,68931.0,68930.0,0.15696356]
[1722217306861,0.15578679,68931.0,68930.0,0.15696356]
[1722217307265,0.15601843,68931.0,68930.0,0.15696356]
[1722217307653,0.07388538,68931.0,68930.0,0.27302256]
[1722217307853,0.07388538,68931.0,68930.0,0.01466356]
[1722217307854,0.60483276,68931.0,68930.0,0.01466356]
[1722217308003,0.73630989,68931.0,68930.0,0.01466356]
[1722217308202,1.19590367,68931.0,68930.0,0.01466356]
[1722217308366,1.19590367,68931.0,68930.0,0.008976]
[1722217308772,1.11432589,68931.0,68930.0,0.008976]
[1722217309191,1.13710996,68931.0,68930.0,0.008976]
[1722217309437,1.11432589,68931.0,68930.0,0.008976]
[1722217310456,1.06399313,68931.0,68930.0,0.008976]
[1722217310668,1.11434301,68931.0,68930.0,0.008976]
[1722217311287,1.11334301,68931.0,68930.0,0.008976]
[1722217311439,1.2323786,68931.0,68930.0,0.008976]
[1722217312256,1.11434301,68931.0,68930.0,0.008976]
[1722217312506,1.13712695,68931.0,68930.0,0.008976]
[1722217313852,1.13688296,68931.0,68930.0,0.008976]
[1722217314276,1.13688444,68931.0,68930.0,0.008976]
[1722217316298,1.13706646,68931.0,68930.0,0.008976]
[1722217316645,1.28732603,68931.0,68930.0,0.008976]
[1722217316894,1.0056327,68931.0,68930.0,0.008976]
[1722217317073,1.13707363,68931.0,68930.0,0.008976]
[1722217317273,0.99370228,68931.0,68930.0,0.008976]
[1722217319533,1.00267828,68931.0,68930.0,0.008976]
[1722217320282,1.00283761,68931.0,68930.0,0.008976]
[1722217321707,0.98005367,68931.0,68930.0,0.008976]
[1722217322436,0.38422141,68931.0,68930.0,0.008976]
[1722217322676,0.51426198,68931.0,68930.0,0.01466115]
[1722217322876,0.50528598,68931.0,68930.0,0.01466115]
[1722217323076,0.27316309,68931.0,68930.0,0.01466115]
[1722217323304,0.6522612,68931.0,68930.0,0.01466115]
[1722217324111,0.73739509,68931.0,68930.0,0.01466115]
[1722217324348,0.81173589,68931.0,68930.0,0.01466115]
[1722217324814,0.73639509,68931.0,68930.0,0.008976]
[1722217325331,0.73739509,68931.0,68930.0,0.008976]
[1722217325692,0.50431199,68931.0,68930.0,0.01466115]
[1722217325900,0.73642799,68931.0,68930.0,0.01466115]
[1722217326284,0.73642799,68931.0,68930.0,0.008976]
[1722217327752,1.11584399,68931.0,68930.0,0.008976]
[1722217328102,1.89276482,68931.0,68930.0,0.008976]
[1722217328637,1.81016959,68931.0,68930.0,0.008976]
[1722217328845,2.5875861,68931.0,68930.0,0.008976]
[1722217329024,2.5885861,68931.0,68930.0,0.008976]
[1722217329385,2.56580227,68931.0,68930.0,0.008976]
[1722217329798,2.46580227,68931.0,68930.0,0.008976]
[1722217330376,2.46480227,68931.0,68930.0,0.008976]
[1722217330581,2.49425951,68931.0,68930.0,0.008976]
[1722217330792,2.71606184,68931.0,68930.0,0.008976]
[1722217331777,2.58510526,68931.0,68930.0,0.008976]
[1722217332201,2.61616972,68931.0,68930.0,0.008976]
[1722217332603,2.6161892,68931.0,68930.0,0.008976]
[1722217332803,2.63897369,68931.0,68930.0,0.008976]
[1722217333008,2.7161892,68931.0,68930.0,0.008976]
[1722217333231,2.6161892,68931.0,68930.0,0.008976]
[1722217333914,2.40180617,68931.0,68930.0,0.008976]
[1722217334128,2.2515466,68931.0,68930.0,0.008976]
[1722217334663,2.25125111,68931.0,68930.0,0.008976]
[1722217334985,1.97320176,68931.0,68930.0,0.008976]
[1722217335185,2.10395133,68931.0,68930.0,0.008976]
[1722217335592,2.31829881,68931.0,68930.0,0.008976]
[1722217336179,2.31829556,68931.0,68930.0,0.008976]
[1722217336382,2.34108037,68931.0,68930.0,0.008976]
[1722217336981,2.31829556,68931.0,68930.0,0.008976]
[1722217337260,2.10395133,68931.0,68930.0,0.008976]
[1722217337911,2.2542109,68931.0,68930.0,0.008976]
[1722217338279,2.35405993,68931.0,68930.0,0.008976]
[1722217338473,2.43725993,68931.0,68930.0,0.008976]
[1722217338722,2.50345993,68931.0,68930.0,0.008976]
[1722217339889,5.06784536,68931.0,68930.0,0.008976]
[1722217340095,4.31584936,68931.0,68930.0,0.008976]
[1722217340290,4.23863425,68931.0,68930.0,0.008976]
[1722217340494,1.56184762,68931.0,68930.0,0.008976]
[1722217340858,0.27853939,68931.0,68930.0,0.22950579]
[1722217341031,0.04988907,68931.0,68930.0,0.60242957]
[1722217341233,0.13160513,68931.0,68930.0,0.84023719]
[1722217341443,0.04991701,68931.0,68930.0,0.84023719]
[1722217341636,0.04991701,68931.0,68930.0,1.07235619]
[1722217341637,0.04891701,68931.0,68930.0,1.07235619]
[1722217341839,0.00084,68933.0,68932.0,0.58028]
[1722217342053,0.00084,68933.0,68932.0,1.05138352]
[1722217342395,0.04349891,68935.0,68934.0,0.16965724]
[1722217342598,0.04349891,68939.0,68938.0,0.348138]
[1722217342796,0.11439217,68940.0,68939.0,0.489333]
[1722217342944,0.11439256,68940.0,68939.0,0.79387286]
[1722217343150,0.04886155,68940.0,68939.0,0.7995393]
[1722217343366,0.11408311,68940.0,68939.0,0.7995393]
[1722217343570,0.04347987,68940.0,68939.0,0.7995393]
[1722217343767,0.08699426,68943.0,68942.0,0.413618]
[1722217343967,0.1354653,68943.0,68942.0,0.47801451]
[1722217344169,0.04847104,68943.0,68942.0,0.48367543]
[1722217344370,0.07001513,68943.0,68942.0,0.48367543]
[1722217344574,0.07001513,68943.0,68942.0,0.07116092]
[1722217344920,0.17871388,68943.0,68942.0,0.07116092]
[1722217345205,0.04847237,68943.0,68942.0,0.18719992]
[1722217345519,0.10866517,68944.0,68943.0,0.430312]
[1722217345696,0.04827567,68944.0,68943.0,0.662387]
[1722217345958,0.04827567,68944.0,68943.0,0.74881385]
[1722217346151,0.1134561,68944.0,68943.0,0.74881385]
[1722217346435,0.04827567,68944.0,68943.0,0.74881385]
[1722217346836,0.00084,68947.0,68946.0,0.232065]
[1722217347044,0.1361667,68947.0,68946.0,0.348097]
[1722217347283,0.15894315,68947.0,68946.0,0.12168556]
[1722217347481,0.15894315,68947.0,68946.0,0.28001579]
[1722217347687,0.15926096,68947.0,68946.0,0.28001579]
[1722217348062,0.07240383,68947.0,68946.0,0.28001579]
[1722217348267,0.07240383,68947.0,68946.0,0.34051579]
[1722217348476,0.1580071,68947.0,68946.0,0.14315356]
[1722217348683,0.07317014,68947.0,68946.0,0.25918556]
[1722217349050,0.07117014,68947.0,68946.0,0.25918556]
[1722217349527,0.07117014,68947.0,68946.0,0.25818556]
[1722217349737,0.07117014,68947.0,68946.0,0.49025056]
[1722217349738,0.11474183,68947.0,68946.0,0.49025056]
[1722217349871,0.00084,68947.0,68946.0,0.5631939]
[1722217350069,0.04450327,68947.0,68946.0,0.3311289]
[1722217350439,0.05076139,68947.0,68946.0,0.25818556]
[1722217350643,0.07430415,68947.0,68946.0,0.14215356]
[1722217350759,0.02538276,68947.0,68946.0,0.14215356]
[1722217350970,0.19028515,68947.0,68946.0,0.14215356]
[1722217351168,0.07425415,68947.0,68946.0,0.14215356]
[1722217351364,0.02563775,68947.0,68946.0,0.14215356]
[1722217351564,0.07450917,68947.0,68946.0,0.14215356]
[1722217351809,0.09703104,68947.0,68946.0,0.14215356]
[1722217351984,0.09728603,68947.0,68946.0,0.14215356]
[1722217352192,0.16211835,68947.0,68946.0,0.14215356]
[1722217352391,0.16237334,68947.0,68946.0,0.14215356]
[1722217352595,0.16211835,68947.0,68946.0,0.14215356]
[1722217352997,0.16237334,68947.0,68946.0,0.14215356]
[1722217353196,0.16211835,68947.0,68946.0,0.14215356]
[1722217353439,0.11350192,68947.0,68946.0,0.14215356]
[1722217353644,0.13724308,68947.0,68946.0,0.14215356]
[1722217353988,0.13724308,68947.0,68946.0,0.3079225]
[1722217353989,0.11553683,68947.0,68946.0,0.3079225]
[1722217354199,0.00184,68947.0,68946.0,0.25818556]
[1722217354378,0.00184,68947.0,68946.0,0.72231556]
[1722217354581,0.00184,68947.0,68946.0,1.26454317]
[1722217354837,0.00184,68947.0,68946.0,1.29300041]
[1722217355023,0.04337926,68960.0,68958.0,0.1403]
[1722217355227,0.06506889,68961.0,68958.0,0.256312]
[1722217355228,0.02154276,68959.0,68958.0,0.256312]
[1722217355442,0.02154276,68961.0,68959.0,0.00557059]
[1722217355616,0.02154276,68962.0,68961.0,0.116006]
[1722217355819,0.02154276,68962.0,68961.0,0.116007]
[1722217356019,0.05855214,68964.0,68962.0,0.116005]
[1722217356433,0.01517288,68964.0,68963.0,0.12156723]
[1722217356612,0.01517288,68964.0,68963.0,0.12056723]
[1722217356814,0.05948763,68964.0,68963.0,0.12207356]
[1722217357443,0.06248763,68964.0,68963.0,0.00606956]
[1722217357817,0.02354276,68959.0,68958.0,0.256312]
[1722217358162,0.02154276,68959.0,68958.0,0.488337]
[1722217358338,0.02154276,68959.0,68958.0,0.5603734]
[1722217358941,0.02154276,68959.0,68958.0,0.488337]
[1722217361175,0.00084,68960.0,68959.0,0.348031]
[1722217361764,0.02238276,68960.0,68959.0,0.348031]
[1722217361965,0.02238276,68960.0,68959.0,0.11601]
[1722217362641,0.02238276,68960.0,68959.0,0.11501]
[1722217363013,0.13755276,68959.0,68958.0,0.0781]
[1722217363239,0.02154276,68959.0,68958.0,0.0751]
[1722217363914,0.13755276,68959.0,68958.0,0.0751]
[1722217364460,0.16132629,68959.0,68958.0,0.0791]
[1722217364760,0.13855276,68959.0,68958.0,0.0791]
[1722217364958,0.14055276,68959.0,68958.0,0.0791]
[1722217365166,0.02454276,68959.0,68958.0,0.0791]
[1722217366920,0.02254276,68959.0,68958.0,0.0791]
[1722217367252,0.02454276,68959.0,68958.0,0.0791]
[1722217367459,0.07409046,68959.0,68958.0,0.0791]
[1722217367857,0.09686309,68959.0,68958.0,0.0791]
[1722217368509,0.21287309,68959.0,68958.0,0.0791]
[1722217368671,0.09686309,68959.0,68958.0,0.0791]
[1722217368878,0.32888409,68959.0,68958.0,0.0791]
[1722217369194,0.42212146,68959.0,68958.0,0.0791]
[1722217369372,0.19010046,68959.0,68958.0,0.0791]
[1722217369725,0.14055276,68959.0,68958.0,0.08462306]
[1722217369983,0.19011276,68959.0,68958.0,0.08462306]
[1722217370124,0.18911276,68959.0,68958.0,0.08062306]
[1722217370329,0.18911266,68959.0,68958.0,0.08062306]
[1722217370714,0.18911266,68959.0,68958.0,0.08362306]
[1722217371043,0.18911266,68959.0,68958.0,0.00852306]
[1722217371248,0.65315466,68959.0,68958.0,0.003]
[1722217371455,1.02954189,68959.0,68958.0,0.003]
[1722217372157,0.73542089,68959.0,68958.0,0.003]
[1722217372369,0.52617424,68959.0,68958.0,0.003]
[1722217372805,0.52617424,68959.0,68947.0,0.23923884]
[1722217372806,0.02154276,68949.0,68948.0,0.232058]
[1722217372948,0.02154276,68949.0,68948.0,0.348087]
[1722217373147,0.02154276,68949.0,68948.0,0.35362846]
[1722217373549,0.18869297,68949.0,68948.0,0.00554146]
[1722217373775,0.07266597,68949.0,68948.0,0.00554146]
[1722217373975,0.07366597,68949.0,68948.0,0.005]
[1722217374175,0.07366597,68949.0,68948.0,0.01054307]
[1722217374426,0.07366597,68949.0,68948.0,0.005]
[1722217374624,0.07366597,68949.0,68948.0,0.01054307]
[1722217375392,0.18969297,68949.0,68948.0,0.01054307]
[1722217375925,0.14056976,68949.0,68948.0,0.01054307]
[1722217376131,0.18957289,68949.0,68948.0,0.01054307]
[1722217376489,0.21234811,68949.0,68948.0,0.01054307]
[1722217376632,0.07354589,68949.0,68948.0,0.01054307]
[1722217376833,0.18957289,68949.0,68948.0,0.01054307]
[1722217377033,0.42162789,68949.0,68948.0,0.01054307]
[1722217377273,0.65368289,68949.0,68948.0,0.01054307]
[1722217377868,0.88473789,68949.0,68948.0,0.00554307]
[1722217378078,0.96772576,68949.0,68948.0,0.004]
[1722217378745,0.580155,68947.0,68946.0,0.000924]
[1722217378948,1.04715076,68947.0,68946.0,0.000924]
[1722217379360,1.04706159,68947.0,68946.0,0.000924]
[1722217379668,1.11315511,68947.0,68946.0,0.000924]
[1722217379889,1.11290248,68947.0,68946.0,0.000924]
[1722217380593,1.06957358,68947.0,68946.0,0.000924]
[1722217380996,1.06957358,68947.0,68946.0,0.004924]
[1722217381228,1.38897177,68947.0,68946.0,0.004924]
[1722217381438,1.38887841,68947.0,68946.0,0.004924]
[1722217381645,1.49718832,68947.0,68946.0,0.004924]
[1722217381851,1.87052998,68947.0,68946.0,0.004924]
[1722217382028,1.76214083,68947.0,68946.0,0.004924]
[1722217382261,1.70479983,68947.0,68946.0,0.004924]
[1722217382485,1.40455783,68947.0,68946.0,0.004924]
[1722217382685,0.96631617,68947.0,68946.0,0.004924]
[1722217383015,1.07474715,68947.0,68946.0,0.004924]
[1722217383223,0.96631617,68947.0,68946.0,0.004924]
[1722217383803,1.67203817,68947.0,68946.0,0.004924]
[1722217383971,1.25647717,68947.0,68946.0,0.004924]
[1722217384193,1.16181617,68947.0,68946.0,0.004924]
[1722217384558,1.18409153,68947.0,68946.0,0.004924]
[1722217384767,2.10685553,68947.0,68946.0,0.004924]
[1722217384938,2.3730671,68947.0,68946.0,0.004924]
[1722217385166,2.3404971,68947.0,68946.0,0.004924]
[1722217385575,2.16745868,68947.0,68946.0,0.004924]
[1722217385777,2.16745868,68947.0,68946.0,0.000924]
[1722217385979,2.27445868,68947.0,68946.0,0.000924]
[1722217386176,2.52098442,68947.0,68946.0,0.000924]
[1722217386384,2.26745868,68947.0,68946.0,0.000924]
[1722217386938,1.59337468,68947.0,68946.0,0.000924]
[1722217387492,1.46332176,68947.0,68946.0,0.000924]
[1722217387715,1.59237239,68947.0,68946.0,0.000924]
[1722217388324,3.23363039,68947.0,68946.0,0.000924]
[1722217388697,3.6473296,68947.0,68946.0,0.000924]
[1722217389109,3.62454839,68947.0,68946.0,0.000924]
[1722217390062,3.77480796,68947.0,68946.0,0.000924]
[1722217390756,3.79494891,68947.0,68946.0,0.000924]
[1722217391189,3.19550134,68947.0,68946.0,0.000924]
[1722217391377,3.11368544,68947.0,68946.0,0.000924]
[1722217391608,3.12068544,68947.0,68946.0,0.000924]
[1722217391978,3.14346701,68947.0,68946.0,0.000924]
[1722217392180,2.24951701,68947.0,68946.0,0.000924]
[1722217392522,2.12400901,68947.0,68946.0,0.000924]
[1722217393307,2.11700901,68947.0,68946.0,0.000924]
[1722217393524,2.23218189,68947.0,68946.0,0.000924]
[1722217393672,2.20940032,68947.0,68946.0,0.000924]
[1722217393874,2.10997685,68947.0,68946.0,0.000924]
[1722217394420,2.12397685,68947.0,68946.0,0.000924]
[1722217395114,2.10997685,68947.0,68946.0,0.000924]
[1722217395335,2.12297685,68947.0,68946.0,0.000924]
[1722217395509,2.15143409,68947.0,68946.0,0.000924]
[1722217395715,2.15196192,68947.0,68946.0,0.000924]
[1722217396294,2.30422149,68947.0,68946.0,0.000924]
[1722217396495,2.37576425,68947.0,68946.0,0.000924]
[1722217396722,2.39854543,68947.0,68946.0,0.000924]
[1722217397129,2.24654899,68947.0,68946.0,0.000924]
[1722217397343,2.37550815,68947.0,68946.0,0.000924]
[1722217397694,2.36250815,68947.0,68946.0,0.000924]
[1722217397938,2.37650815,68947.0,68946.0,0.000924]
[1722217398290,2.81507015,68947.0,68946.0,0.000924]
[1722217399727,2.66481058,68947.0,68946.0,0.000924]
[1722217400133,2.68759284,68947.0,68946.0,0.000924]
[1722217400401,2.68804723,68947.0,68946.0,0.000924]
[1722217400810,2.55863368,68947.0,68946.0,0.000924]
[1722217401004,2.66519117,68947.0,68946.0,0.000924]
[1722217405932,2.67416717,68947.0,68946.0,0.000924]
[1722217406963,2.82442674,68947.0,68946.0,0.000924]
[1722217407211,2.82376092,68947.0,68946.0,0.000924]
[1722217407353,2.84654337,68947.0,68946.0,0.000924]
[1722217408005,4.7992778,68947.0,68946.0,0.000924]
[1722217408213,4.6504438,68947.0,68946.0,0.000924]
[1722217408876,4.62766135,68947.0,68946.0,0.000924]
[1722217409085,4.77067715,68947.0,68946.0,0.000924]
[1722217410111,4.64200322,68947.0,68946.0,0.000924]
[1722217410326,4.77094001,68947.0,68946.0,0.000924]
[1722217410558,4.79226279,68947.0,68946.0,0.000924]
[1722217410688,4.92119958,68947.0,68946.0,0.000924]
[1722217411211,4.79739958,68947.0,68946.0,0.000924]
[1722217411774,4.82039958,68947.0,68946.0,0.000924]
[1722217412169,4.84318193,68947.0,68946.0,0.000924]
[1722217412328,4.21786636,68947.0,68946.0,0.000924]
[1722217412693,4.19503963,68947.0,68946.0,0.000924]
[1722217413298,4.06614722,68947.0,68946.0,0.000924]
[1722217413431,1.06806476,68931.0,68930.0,0.008976]
[1722217413630,2.33191445,68931.0,68930.0,0.008976]
[1722217413973,2.18411445,68931.0,68930.0,0.01551201]
[1722217414207,2.29928733,68931.0,68930.0,0.01551201]
[1722217414439,2.39928733,68931.0,68930.0,0.01551201]
[1722217414637,2.39928733,68931.0,68930.0,0.008976]
[1722217415626,2.5495469,68931.0,68930.0,0.008976]
[1722217415992,2.57485846,68931.0,68930.0,0.008976]
[1722217416647,2.42492825,68931.0,68930.0,0.008976]
[1722217417148,2.63425902,68931.0,68930.0,0.008976]
[1722217417665,2.78515902,68931.0,68930.0,0.008976]
[1722217418012,2.77915902,68931.0,68930.0,0.008976]
[1722217418456,2.78615902,68931.0,68930.0,0.008976]
[1722217418661,2.95941859,68931.0,68930.0,0.008976]
[1722217419212,3.173152,68931.0,68930.0,0.008976]
[1722217419640,2.83032354,68931.0,68930.0,0.008976]
[1722217419915,2.45039923,68931.0,68930.0,0.008976]
[1722217420052,2.33214942,68931.0,68930.0,0.008976]
[1722217420257,2.3323258,68931.0,68930.0,0.008976]
[1722217421314,2.30953845,68931.0,68930.0,0.008976]
[1722217422071,2.18004797,68931.0,68930.0,0.008976]
[1722217422310,1.40259317,68931.0,68930.0,0.008976]
[1722217422535,1.37413593,68931.0,68930.0,0.008976]
[1722217422749,1.13612793,68931.0,68930.0,0.148276]
[1722217422951,1.13610368,68931.0,68930.0,0.148276]
[1722217423323,1.28279512,68931.0,68930.0,0.148276]
[1722217423556,1.13610368,68931.0,68930.0,0.148276]
[1722217424425,1.25888935,68931.0,68930.0,0.148276]
[1722217424784,1.23610368,68931.0,68930.0,0.148276]
[1722217426002,1.23725589,68931.0,68930.0,0.148276]
[1722217427030,1.23725589,68931.0,68930.0,0.086376]
[1722217427248,1.28725589,68931.0,68930.0,0.086376]
[1722217427667,1.14130189,68931.0,68930.0,0.086376]
[1722217428013,1.16368603,68931.0,68930.0,0.086376]
[1722217428316,2.16928088,68931.0,68930.0,0.086376]
[1722217428516,2.31954045,68931.0,68930.0,0.086376]
[1722217428718,2.37774645,68931.0,68930.0,0.086376]
[1722217429129,2.24749454,68931.0,68930.0,0.086376]
[1722217429465,2.37767203,68931.0,68930.0,0.086376]
[1722217429667,2.24749454,68931.0,68930.0,0.008976]
[1722217429827,2.37767943,68931.0,68930.0,0.008976]
[1722217430033,2.60979543,68931.0,68930.0,0.008976]
[1722217430236,2.37767943,68931.0,68930.0,0.008976]
[1722217430664,2.60979543,68931.0,68930.0,0.008976]
[1722217430860,2.37767943,68931.0,68930.0,0.008976]
[1722217431660,2.40046545,68931.0,68930.0,0.008976]
[1722217431828,2.37438245,68931.0,68930.0,0.008976]
[1722217432269,2.35159643,68931.0,68930.0,0.008976]
[1722217432453,2.35143978,68931.0,68930.0,0.008976]
[1722217432849,2.58355578,68931.0,68930.0,0.008976]
[1722217433126,2.35143978,68931.0,68930.0,0.008976]
[1722217433237,2.45143978,68931.0,68930.0,0.008976]
[1722217433444,2.68355578,68931.0,68930.0,0.008976]
[1722217433653,2.82715578,68931.0,68930.0,0.008976]
[1722217434466,3.05927178,68931.0,68930.0,0.008976]
[1722217434677,3.08227178,68931.0,68930.0,0.008976]
[1722217435295,3.10505917,68931.0,68930.0,0.008976]
[1722217435547,3.10502915,68931.0,68930.0,0.008976]
[1722217435742,3.10503166,68931.0,68930.0,0.008976]
[1722217436582,3.08224427,68931.0,68930.0,0.008976]
[1722217437650,3.01070151,68931.0,68930.0,0.008976]
[1722217437833,3.08224427,68931.0,68930.0,0.008976]
[1722217438573,3.00082384,68931.0,68930.0,0.008976]
[1722217438775,3.08233797,68931.0,68930.0,0.008976]
[1722217439231,3.08266191,68931.0,68930.0,0.008976]
[1722217441196,1.36917776,68930.0,68929.0,0.00408121]
[1722217441380,8.23634122,68930.0,68929.0,0.00408121]
[1722217441582,7.24091122,68930.0,68929.0,0.00408121]
[1722217442086,7.32652322,68930.0,68929.0,0.00408121]
[1722217442427,7.04280022,68930.0,68929.0,0.00408121]
[1722217443172,7.04280022,68930.0,68924.0,0.008976]
[1722217443173,0.28961076,68925.0,68924.0,2.1e-07]
[1722217443322,2.44080976,68925.0,68924.0,2.1e-07]
[1722217443520,3.13566356,68925.0,68924.0,2.1e-07]
[1722217443721,3.59993556,68925.0,68924.0,2.1e-07]
[1722217444138,3.59956056,68925.0,68924.0,2.1e-07]
[1722217444567,3.0008818,68925.0,68924.0,2.1e-07]
[1722217444749,3.07242456,68925.0,68924.0,2.1e-07]
[1722217445148,3.08642456,68925.0,68924.0,2.1e-07]
[1722217445479,3.0128818,68925.0,68924.0,2.1e-07]
[1722217445686,3.08642456,68925.0,68924.0,2.1e-07]
[1722217446704,3.0148818,68925.0,68924.0,2.1e-07]
[1722217447103,3.08642456,68925.0,68924.0,2.1e-07]
[1722217447405,3.44314533,68925.0,68924.0,2.1e-07]
[1722217447827,3.4203555,68925.0,68924.0,2.1e-07]
[1722217448028,3.17009593,68925.0,68924.0,2.1e-07]
[1722217448676,3.33499593,68925.0,68924.0,2.1e-07]
[1722217448797,3.54908985,68925.0,68924.0,2.1e-07]
[1722217449201,3.33499593,68925.0,68924.0,2.1e-07]
[1722217449421,3.54909177,68925.0,68924.0,2.1e-07]
[1722217449629,3.69935134,68925.0,68924.0,2.1e-07]
[1722217450280,3.4852555,68925.0,68924.0,2.1e-07]
[1722217450456,3.35465033,68925.0,68924.0,2.1e-07]
[1722217450659,3.48545994,68925.0,68924.0,2.1e-07]
[1722217450896,3.35465033,68925.0,68924.0,2.1e-07]
[1722217451109,0.28963376,68911.0,68910.0,0.008987]
[1722217451348,0.65407476,68902.0,68901.0,0.52418657]
[1722217451518,1.09979531,68902.0,68901.0,0.07340785]
[1722217451693,3.32120651,68902.0,68901.0,0.08002968]
[1722217451879,3.32373303,68902.0,68901.0,0.07340785]
[1722217452081,3.42217883,68902.0,68901.0,0.07340785]
[1722217452395,3.52217883,68902.0,68901.0,0.07340785]
[1722217452599,0.83440676,68892.0,68891.0,0.002]
[1722217452868,1.51444029,68892.0,68891.0,0.002]
[1722217453054,1.31541429,68892.0,68891.0,0.002]
[1722217453228,1.18501431,68892.0,68891.0,0.0631]
[1722217453445,1.05420676,68892.0,68891.0,0.0631]
[1722217453649,1.32019336,68892.0,68891.0,0.0631]
[1722217454224,1.32019336,68892.0,68891.0,0.1462]
[1722217455540,1.32019336,68892.0,68891.0,0.147124]
[1722217456678,1.23866318,68892.0,68891.0,0.147124]
[1722217456884,1.32005495,68892.0,68891.0,0.147124]
[1722217457307,1.4503078,68892.0,68891.0,0.147124]
[1722217457513,1.29993976,68890.0,68889.0,0.008987]
[1722217457721,6.71421895,68890.0,68889.0,0.008987]
[1722217457922,0.98645576,68888.0,68887.0,1e-06]
[1722217458079,0.42000476,68874.0,68873.0,0.066351]
[1722217458281,2.85172595,68874.0,68873.0,0.066351]
[1722217458499,3.21322995,68874.0,68873.0,0.066351]
[1722217458903,1.11895976,68872.0,68869.0,0.00072601]
[1722217459125,1.16751718,68872.0,68869.0,0.00072601]
[1722217459335,1.2758909,68872.0,68869.0,0.00072601]
[1722217459507,1.16751718,68872.0,68869.0,0.00072601]
[1722217459714,1.11764744,68872.0,68869.0,0.00072601]
[1722217459892,1.27603636,68872.0,68869.0,0.00072601]
[1722217460091,1.06895976,68872.0,68869.0,0.00072601]
[1722217460456,1.20432339,68872.0,68869.0,0.00072601]
[1722217460650,1.11764787,68872.0,68869.0,0.00072601]
[1722217461107,1.54098953,68872.0,68869.0,0.00072601]
[1722217461309,1.54098953,68872.0,68870.0,0.0802]
[1722217461457,1.55597852,68872.0,68870.0,0.0802]
[1722217461651,1.31112076,68872.0,68870.0,0.0802]
[1722217461877,1.26767453,68872.0,68870.0,0.0802]
[1722217462078,1.26767453,68872.0,68869.0,0.00072601]
[1722217462079,1.26767453,68872.0,68871.0,0.1449]
[1722217462961,0.8945221,68872.0,68871.0,0.1449]
[1722217464586,0.91732681,68872.0,68871.0,0.1449]
[1722217465086,0.21838181,68872.0,68871.0,0.1449]
[1722217465288,0.45069681,68872.0,68871.0,0.15574156]
[1722217465598,0.4298921,68872.0,68871.0,0.15574156]
[1722217465807,0.6622071,68872.0,68871.0,0.15574156]
[1722217466012,0.6622071,68872.0,68871.0,0.1449]
[1722217466454,0.4298921,68872.0,68871.0,0.1449]
[1722217466799,0.6622071,68872.0,68871.0,0.1449]
[1722217466995,0.6622071,68872.0,68871.0,0.15574009]
[1722217467271,0.6622071,68872.0,68871.0,0.1449]
[1722217467409,0.6622071,68872.0,68871.0,0.15573853]
[1722217467410,0.65314687,68872.0,68871.0,0.15573853]
[1722217467613,0.88546187,68872.0,68871.0,0.15573853]
[1722217467814,0.65314687,68872.0,68871.0,0.1449]
[1722217468031,0.65314687,68872.0,68871.0,0.15573853]
[1722217468484,0.65514687,68872.0,68871.0,0.15573853]
[1722217468905,0.67595101,68872.0,68871.0,0.1449]
[1722217469081,0.6351339,68872.0,68871.0,0.15573853]
[1722217469284,0.91599232,68872.0,68871.0,0.15573853]
[1722217469711,0.91599232,68872.0,68871.0,0.1449]
[1722217469909,0.94318818,68872.0,68871.0,0.002]
[1722217470774,1.90030956,68872.0,68871.0,0.002]
[1722217470893,2.12462456,68872.0,68871.0,0.002]
[1722217471104,2.07152756,68872.0,68871.0,0.002]
[1722217471465,2.32878713,68872.0,68871.0,0.002]
[1722217471901,2.32178713,68872.0,68871.0,0.002]
[1722217472075,2.32431277,68872.0,68871.0,0.002]
[1722217472271,2.33331277,68872.0,68871.0,0.002]
[1722217472849,2.1830532,68872.0,68871.0,0.002]
[1722217473013,1.9507382,68872.0,68871.0,0.002]
[1722217473210,1.2746912,68872.0,68871.0,0.002]
[1722217473472,1.0783942,68872.0,68871.0,0.002]
[1722217473617,1.2079162,68872.0,68871.0,0.1453]
[1722217474025,0.99671382,68872.0,68871.0,0.1453]
[1722217474494,1.04671382,68872.0,68871.0,0.002]
[1722217474648,1.18492007,68872.0,68871.0,0.002]
[1722217474848,2.22358174,68872.0,68871.0,0.002]
[1722217475469,2.22431258,68872.0,68871.0,0.002]
[1722217475875,1.99199758,68872.0,68871.0,0.002]
[1722217476154,1.26768058,68872.0,68871.0,0.002]
[1722217476355,1.49999558,68872.0,68871.0,0.002]
[1722217476760,4.53428444,68872.0,68871.0,0.002]
[1722217477078,4.78544358,68872.0,68871.0,0.002]
[1722217477277,4.90308991,68872.0,68871.0,0.002]
[1722217477441,4.94665814,68872.0,68871.0,0.002]
[1722217477641,5.05475403,68872.0,68871.0,0.002]
[1722217477844,4.94665814,68872.0,68871.0,0.002]
[1722217478269,4.9694668,68872.0,68871.0,0.002]
[1722217478452,4.9604668,68872.0,68871.0,0.002]
[1722217478788,4.97426998,68872.0,68871.0,0.002]
[1722217479082,4.84316287,68872.0,68871.0,0.002]
[1722217479290,4.97427051,68872.0,68871.0,0.002]
[1722217479496,4.97427051,68872.0,68852.0,0.0833]
[1722217479497,1.48640276,68856.0,68851.0,0.002]
[1722217479729,2.22322106,68856.0,68851.0,0.002]
[1722217479915,8.26017752,68856.0,68855.0,1e-06]
[1722217480119,8.57414662,68856.0,68855.0,1e-06]
[1722217480323,8.96478178,68856.0,68855.0,1e-06]
[1722217480536,9.00835001,68856.0,68855.0,1e-06]
[1722217480954,9.00835001,68856.0,68841.0,0.002]
[1722217480955,1.11941476,68842.0,68841.0,0.002]
[1722217481159,1.3505224,68842.0,68841.0,0.002]
[1722217481361,4.97446903,68842.0,68841.0,0.002]
[1722217481600,4.84309601,68842.0,68841.0,0.002]
[1722217481771,4.19798066,68842.0,68841.0,0.002]
[1722217482224,1.36139966,68842.0,68841.0,0.002]
[1722217482658,1.59381566,68842.0,68841.0,0.002]
[1722217482859,1.60281566,68842.0,68841.0,0.002]
[1722217484008,1.37039966,68842.0,68841.0,0.002]
[1722217484217,1.52065923,68842.0,68841.0,0.002]